Cogmind - Beta 15 --- EXPLORER MODE // 2025.07.11 @ 20:02:58 Player: GermanMO Result: Destroyed by M6-EMX(R) with Subdweller Beam Cannon Performance ------------- Evolutions (0) 0 Regions Visited (2) 400 Robots Destroyed (14) 70 Value Destroyed (348) 348 Prototype IDs (0) 0 Alien Tech Used (0) 0 Bonus (0) 0 TOTAL SCORE: 818 Bonus ------- None Cogmind --------- Core Integrity 0/250 Matter 300/300 Energy 198/200 System Corruption 0% Temperature Cool (10) Movement Walking (190) Ox1 Location -10/Subcaves Parts ------- > --- POWER (1) -------- Subdweller Power Source > --- PROPULSION (2) --- Aluminum Leg > --- UTILITY (3) ------ Targeting Computer Targeting Computer Utility Shielding > --- WEAPON (2) ------- Light Assault Rifle Subdweller Machine Gun > --- INVENTORY (5) ---- Subdweller Power Source Peak State ------------ > --- POWER ------------ Light Ion Engine > --- PROPULSION ------- Aluminum Leg Aluminum Leg > --- UTILITY ---------- Targeting Computer Targeting Computer Utility Shielding > --- WEAPON ----------- Light Assault Rifle Subdweller Machine Gun > --- INVENTORY -------- (None) [Rating: 9] Favorites ----------- Power Light Ion Engine Engine Light Ion Engine Propulsion Aluminum Leg Leg Aluminum Leg Flight Unit Flight Unit Utility Targeting Computer Processor Targeting Computer Protection Utility Shielding Weapon Light Assault Rifle Ballistic Gun Light Assault Rifle Build | -11 -10 -10 ------- Run | Yrd Mat Sub Slots Evolved 1 | . 1 . Power . | . . . Propulsion . | . . . Utility 1 | . 1 . Weapon . | . . . Parts Attached 16 | 7 1 8 Power 3 | 1 . 2 Engine 3 | 1 . 2 Core . | . . . Reactor . | . . . Propulsion 5 | 2 . 3 Treads . | . . . Leg 3 | 2 . 1 Wheel . | . . . Hover . | . . . Flight 2 | . . 2 Utility 3 | 2 1 . Device . | . . . Storage . | . . . Processor 2 | 1 1 . Hackware . | . . . Protection 1 | 1 . . Artifact . | . . . Weapon 5 | 2 . 3 Energy Gun . | . . . Energy Cannon . | . . . Ballistic Gun 5 | 2 . 3 Ballistic Cannon . | . . . Launcher . | . . . Special Weapon . | . . . Impact Weapon . | . . . Slashing Weapon . | . . . Piercing Weapon . | . . . Special Melee Weapon . | . . . Unidentified Prototypes . | . . . Parts Lost 7 | . . 7 Power 2 | . . 2 Propulsion 2 | . . 2 Utility . | . . . Weapon 3 | . . 3 Highest Loss Streak 3 | . . 3 To Critical Strikes 1 | . . 1 Average Backups . | 1 . . Power . | . . . Propulsion . | . . . Utility . | 1 . . Weapon . | . . . Tool/Special . | . . . Unused Backups 1 | . . 1 Power 1 | . . 1 Propulsion . | . . . Utility . | . . . Weapon . | . . . Tool/Special . | . . . Average Slot Usage (%) 90 | . 100 86 Engine 9 | . 12 8 Leg 21 | . 25 19 Processor 25 | . 25 25 Protection 12 | . 12 12 Ballistic Gun 21 | . 25 19 Peak Build Rating 9 | 7 8 9 Average Rating 7 | 4 8 7 On Entrance 5 | . 7 8 Naked Turns . | . . . Heaviest Build 11 | 6 6 11 Greatest Support 20 | 20 20 20 Greatest Overweight (x) 2 | . . 2 Average Overweight (x) . | . . . Largest Inventory Capacity 5 | 5 5 5 Average Capacity 5 | 5 5 5 Most Carried 5 | 5 1 2 Average Carried . | 1 . . Final Capacity 5 | 5 5 5 Final Carried 1 | 1 1 1 Class Distribution -------------------- 100% | Hacker-Mutant Dominant Class ---------------- Hacker-Mutant | -10/Materials Hacker-Mutant | -10/Subcaves Resources | -11 -10 -10 ----------- Run | Yrd Mat Sub Matter Collected 410 | 82 188 140 Remotely . | . . . Salvage Created 338 | . 78 260 Parts 31 | . 5 26 Haulers Intercepted . | . . . Recyclers Shooed . | . . . Parts Field Recycled . | . . . Retrieved Matter . | . . . Parts Self-Destructed . | . . . Prevented . | . . . Kills | -11 -10 -10 ------- Run | Yrd Mat Sub Combat Hostiles Destroyed 12 | . 2 10 Guns 12 | . 2 10 Classes Destroyed 4 | . 1 3 Turret 2 | . . 2 Swarmer 6 | . . 6 Grunt 2 | . 2 . Subdweller 4 | . . 4 Best Kill Streak 4 | . 2 4 Combat Bots Only 4 | . 2 4 Max Kills in Single Turn 1 | . 1 1 Gunslinging . | . . . Exploded . | . . . Melee . | . . . Uniques/NPCs Destroyed . | . . . Combat | -11 -10 -10 -------- Run | Yrd Mat Sub Hostile Shots Fired 190 | . 10 180 Missed 69 | . . 69 Hits 121 | . 10 111 Projectile 121 | . 10 111 Critical Strikes 2 | . . 2 Damage Taken 923 | . 68 855 Core 260 | . 14 246 Absorbed by Shields . | . . . Redirected to Shielding 2 | . 2 . Ignored by Resistances 588 | . 45 543 Core Remaining (%) 100 | 100 . . Volleys Fired 60 | . 6 54 Largest 2 | . 2 2 Hottest 50 | . 40 50 Shots Fired 84 | . 12 72 Gun 84 | . 12 72 Cannon . | . . . Launcher . | . . . Special . | . . . Kinetic 84 | . 12 72 Thermal . | . . . Explosive . | . . . Electromagnetic . | . . . Robot Hit Streak 24 | . 7 24 Robot Miss Streak 2 | . 2 1 Penetration Max . | . . . Secondary Targets 4 | . 1 3 Max Gunslinging Chain 1 | . 1 1 Shots Hit Robots 76 | . 10 66 Core Hits 29 | . 5 24 Critical Kills . | . . . Critical Parts Destroyed . | . . . Critical Strikes . | . . . Melee Attacks . | . . . Impact . | . . . Slashing . | . . . Piercing . | . . . Sneak Attacks . | . . . Combat Hostiles . | . . . Follow-up Attacks . | . . . Damage Inflicted 756 | . 87 669 Guns 744 | . 82 662 Cannons . | . . . Explosions . | . . . Melee . | . . . Ramming 12 | . 5 7 Kinetic 744 | . 82 662 Thermal . | . . . Explosive . | . . . Electromagnetic . | . . . Impact . | . . . Slashing . | . . . Piercing . | . . . Highest Corruption . | . . . Average Corruption . | . . . Corruption Purged . | . . . Corruption Blocked . | . . . Overload Shots . | . . . Overflow Damage . | . . . Projectiles . | . . . Explosions . | . . . Melee . | . . . Knockbacks . | . . . Impact . | . . . Kinetic . | . . . Secondary . | . . . Self-Inflicted Damage . | . . . Shots . | . . . Rammed . | . . . Targets Rammed 8 | . 1 7 Kicked 8 | . 1 7 Crushed . | . . . Highest Temperature 18 | . 18 11 Average Temperature 8 | . 9 7 Received Heat Transfer 453 | . 60 393 Siege Activations . | . . . Martial Activations . | . . . Shielding Activations . | . . . Robots Disrupted . | . . . Combat Hostiles . | . . . Robots Corrupted . | . . . Combat Hostiles . | . . . Parts Fried . | . . . Impact Corruptions . | . . . Robots Melted . | . . . Combat Hostiles . | . . . Parts Melted . | . . . Heat Transferred . | . . . Parts Sabotaged . | . . . Parts Stolen . | . . . Parts Stripped . | . . . Power Chain Reactions . | . . . Alert | -11 -10 -10 ------- Run | Yrd Mat Sub Maximum Alert Level . | . . . Low Security (%) 100 | 100 100 . Level 1 . | . . . Level 2 . | . . . Level 3 . | . . . Level 4 . | . . . Level 5 . | . . . High Security . | . . . Max Security . | . . . Peak Influence 40 | . 40 . Initial . | . . . Average 2 | . 2 . Influence Increases 240 | . 40 200 Destroy 0b10 Robot/C 200 | . 40 160 Destroy Leader 10 | . . 10 Lose Combat Pursuer 30 | . . 30 Influence Decreases 240 | . 40 200 Time Decay 200 | . 40 160 Lost Part 40 | . . 40 Squads Dispatched . | . . . Investigation . | . . . Extermination . | . . . Reinforcement . | . . . Assault . | . . . Garrison . | . . . Intercept . | . . . Searches Triggered . | . . . Construction Impeded . | . . . Haulers Reinforced . | . . . Active Scanning Responses . | . . . Cargo Convoy Interrupts . | . . . Stealth | -11 -10 -10 --------- Run | Yrd Mat Sub Distress Signals . | . . . Communications Jammed . | . . . Distress Signals . | . . . Times Spotted 17 | . 3 14 Peak Tracking Total 5 | . 2 5 Tactical Retreats 1 | . . 1 Traps | -11 -10 -10 ------- Run | Yrd Mat Sub Traps Triggered . | . . . Indirectly . | . . . Trap Hack Attempts . | . . . Triggered . | . . . Disarmed . | . . . Reprogrammed . | . . . Reused . | . . . Traps Extracted . | . . . Installed . | . . . Triggered . | . . . Machines | -11 -10 -10 ---------- Run | Yrd Mat Sub Machines Disabled . | . . . Max in Single Turn . | . . . Machines Repaired . | . . . Machines Dismantled . | . . . Machines Sabotaged . | . . . Overloaded Fab Kills . | . . . Hacking | -11 -10 -10 --------- Run | Yrd Mat Sub Machines Accessed 2 | . 1 1 Terminals 1 | . 1 . Fabricators . | . . . Repair Stations . | . . . Recycling Units . | . . . Scanalyzers . | . . . Garrison Access . | . . . Total Hacks 5 | . 1 4 Successful 5 | . 1 4 Failed . | . . . Catastrophic . | . . . Database Lockouts . | . . . Manual . | . . . Terminals 1 | . 1 . Fabricators . | . . . Repair Stations . | . . . Recycling Units . | . . . Scanalyzers . | . . . Garrison Access . | . . . Terminal Hacks 5 | . 1 4 Record 4 | . . 4 Zone Layout 1 | . 1 . Fabricator Hacks . | . . . Repair Station Hacks . | . . . Recycling Unit Hacks . | . . . Scanalyzer . | . . . Garrison Access Hacks . | . . . Unauthorized Hacks . | . . . Terminals . | . . . Fabricators . | . . . Repair Stations . | . . . Recycling Units . | . . . Scanalyzers . | . . . Garrison Access . | . . . Data Cores Recovered . | . . . Used . | . . . Hacking Detections . | . . . Full Trace Events . | . . . Feedback Events . | . . . Feedback Blocked . | . . . Robot Schematics Acquired . | . . . Robots Built . | . . . Authchips . | . . . Time . | . . . Total Robot Build Rating . | . . . Part Schematics Acquired . | . . . Parts Built . | . . . Authchips . | . . . Time . | . . . Total Part Build Rating . | . . . Parts Repaired . | . . . Time . | . . . Parts Recycled . | . . . Recycled Matter . | . . . Retrieved Matter . | . . . Retrieved Components . | . . . Parts Scanalyzed . | . . . Part Schematics Acquired . | . . . Parts Damaged . | . . . Bothacking | -11 -10 -10 ------------ Run | Yrd Mat Sub Used RIF Installer . | . . . Robots Hacked . | . . . Non-combat . | . . . Combat . | . . . Robot Hacks Applied . | . . . Relay Couplers Released . | . . . Fabnet Peak Effective % . | . . . Robots Rewired . | . . . Allies Hacked . | . . . Hacks Repelled . | . . . Allies | -11 -10 -10 -------- Run | Yrd Mat Sub Total Allies . | . . . Largest Group . | . . . Highest-Rated Group . | . . . Highest-Rated Ally . | . . . Total Orders . | . . . Ally Attacks . | . . . Total Damage . | . . . Kills . | . . . Allies Corrupted . | . . . Allies Melted . | . . . Intel | -11 -10 -10 ------- Run | Yrd Mat Sub Active Infowar (turns) . | . . . Robot Analysis Total . | . . . Derelict Logs Recovered 2 | . . 2 Drone Launches . | . . . Drone Recoveries . | . . . Exploration | -11 -10 -10 ------------- Run | Yrd Mat Sub Turns Passed 1481 | 60 466 955 Spaces Moved 994 | 44 322 628 Core 13 | 10 . 3 Treads . | . . . Legs 971 | 34 322 615 Wheels . | . . . Hover . | . . . Flight 10 | . . 10 Fastest Speed 50 | 50 120 117 Average Speed 123 | 104 120 126 Slowest Speed 190 | 120 120 190 Overloaded Moves . | . . . Propulsion Burnouts . | . . . Robots Hopped . | . . . Potential Cave-ins . | . . . Cave-ins Triggered . | . . . Exploration Rate (%) 33 | 5 52 44 Regions Visited 2 Branch Regions 1 Pre-discovered Areas . | . . . Known Exits Taken 2 | 1 1 . Unknown Exits Taken . | . . . Scrap Searched . | . . . Spaces Dug . | . . . Terrain Destroyed . | . . . Melee . | . . . Projectile . | . . . AOE . | . . . Terrain Rammed . | . . . Walls Destroyed . | . . . Machines Disabled . | . . . Actions | -11 -10 -10 --------- Run | Yrd Mat Sub Total 1180 | 58 392 730 Wait 79 | . 62 17 Move 992 | 43 321 628 Hop . | . . . Pick Up 19 | 8 1 10 Fast Attach . | . . . Attach 18 | 7 1 10 Detach . | . . . Swap . | . . . Drop 4 | . . 4 Fire 60 | . 6 54 Melee . | . . . Ram . | . . . Kick 8 | . 1 7 Crush . | . . . Escape Stasis . | . . . Rewire . | . . . Trap . | . . . Miscellaneous . | . . . Route ------- -11/Scrapyard -10/Materials (discovered 3 exits: *Mat / *Min / *Sub) -10/Subcaves (discovered 2 exits: *Mat / *Rec) History --------- Turn | Location | Event 8 | -11/Scrapyard | Identified exit to Materials 8 | -11/Scrapyard | Discovered exit to Materials (range 16) 61 | -11/Scrapyard | Entered Materials 61 | -10/Materials | Evolved 1 slot: Utility x1 306 | -10/Materials | Identified exit to Materials 306 | -10/Materials | Discovered exit to Materials (range 8) 310 | -10/Materials | Build established: Hacker-Mutant 341 | -10/Materials | Identified exit to Mines 341 | -10/Materials | Discovered exit to Mines (range 6) 519 | -10/Materials | Identified exit to Subcaves 519 | -10/Materials | Discovered exit to Subcaves (range 6) 527 | -10/Materials | Entered Subcaves 531 | -10/Subcaves | Learned Materials interactive machine intel 611 | -10/Subcaves | Identified exit to Recycling 611 | -10/Subcaves | Discovered exit to Recycling (range 10) 707 | -10/Subcaves | Shifting Twisted Machinery released Battle Cannon 967 | -10/Subcaves | Disturbed a concealed Subdweller 1137 | -10/Subcaves | Core integrity fell below 50% 1157 | -10/Subcaves | Identified exit to Materials 1157 | -10/Subcaves | Discovered exit to Materials (range 8) 1179 | -10/Subcaves | Lost 3 parts (1p1n1w) 1248 | -10/Subcaves | Learned location of 1 exit from Materials 1250 | -10/Subcaves | Visited Clippyterm 1254 | -10/Subcaves | Learned Factory stockpile data 1340 | -10/Subcaves | Core integrity fell below 20% 1482 | -10/Subcaves | Destroyed by M6-EMX(R) with Subdweller Beam Cannon Last Messages --------------- Data stored: Factory stockpile data. >>Record! "LRC-V1" It looks like you're REDACTED, I can suggest REDACTED and REDACTED. Also definitely avoid REDACTED. >>Record! "Optimus" It looks like you're curious about the current leader of 0bPrime. Optimus is well liked, but certainly not being up front with the UFD as a whole. NB-V1J(R): "SUBMAD!" NB-V1J(R) destroyed. P2-1HD(R) affixes Scrap Shield Fragment to Scrap Shield. P2-1HD(R) destroyed. Acquired 10 matter. Acquired Sub. Machine Gun. Acquired Sub. Power Source. Acquired 20 matter. Acquired Sub. Power Source. Map ----- +----------------------------------------------------+ | ?????????????????????????????????????????????????? | | ?????????????????????????????????????????????????? | | ?????????????????????????????????????????????????? | | ?????????????????????????????????????????????????? | | ?????????????????????????????????????????????????? | | ?????????????????????????????????????????????????? | | ?????????????????????????????????????????????????? | | ?????????????????????????????????????????????????? | | ?????????????????????????????????????????????????? | | ?????????????????????????????????????????????????? | | ?????????????????????????????????????????????????? | | ????????????????????? #?????????????????????????? | | ????????????????????? #????????????????????????? | | ????????????????????? ????????????????????????? | | ????????????????????? ????????????????????????? | | ?????????????????????? #???????????????????????? | | ?????????????????????? ???????????????????????? | | ?????????????????????? #??????????????????????? | | ??????????????????????# #??????????????????????? | | ??????????????????????# ##?????????????????????? | | ??????????????????????# ##????????????????????? | | ?????????????????????## ####?????????????????? | | ?????????????????????# ###???????????????? | | ?????????????????????# # # #????????? | | ?????????????????????# ????????????? | | ?????????????????????# @ #???????????????????? | | ?????????????????????### ##???????????????????? | | ???????????????????????## ##???????????????????? | | ?????????????????##?????# #???????????????????? | | ?????????????????? ###?## ###?##??????????????? | | ???????????????????? ??## "## #??????????????? | | ????????????????????? ??# #??????????????? | | ????????????????##????# #?# #??????????????? | | ????????????????# ??## #" ##??????????????? | | ?????????????????# ## R ##???????????????? | | ?????????????????# ##???????????????? | | ???????????????### #???????????????? | | ??????????????## ##???????????# ?? | | ????????????# ######???###?## ?? | | ??????????? ##?## #### ## ? | | ???????????? #### ## ?? | | ???????????? ## ## #?? | | ????????????? ### #??? | | ????????????? #??# #### | | ????????????? #??## | | ?????????????? ???# ## | | ?????????????? ????# #" ## | | ??????????????? ?????# "" #? | | ???????????????####?????# ### #?? | | ????????????????????????### ### ###?? | +----------------------------------------------------+ Best States ------------- Heat Dissipation 25 Energy Generation 15 Energy Capacity 200 Matter Stores 300 Matter Capacity 300 Sight Range 16 Terrain Scan Density 10 Resistance: KI 35 Resistance: TH 35 Resistance: EX 35 Resistance: EM 35 Resistance: I 35 Resistance: S 35 Resistance: P 35 Utility Shielding 33 Evasion (%) 55 Targeting Accuracy 10 Offensive Hacking 20 Item Schematics ----------------- None Robot Schematics ------------------ None Fabricated ------------ Nothing Repaired ---------- Nothing Alien Tech Used ----------------- None Achievements -------------- None Challenges ------------ None Game ------ Seed LaserCobblerNetwork Manual? 0 Play Time 00:20:24 Cumulative 16.5 hours Start 2025.05.17 @ 23:20:39 End 2025.07.11 @ 20:02:58 Sessions 10 Manual Loads 0 Difficulty Explorer Special Mode None Game No. 19 Rogue 0 Adventurer 0 Explorer 19 Win Type - Total 0 Types 0/0/0/0/0/0/0/0/0/0 Lore% 12 Gallery% 18 Achievement% 16 Wizard Run 0 Options --------- Layout 1 ASCII 0 Keyboard 0 Movement Mouse Keybinds 0 Fullscreen 2 Font 16/SmallcapsGlow Map View 50x35 Zoom Use 0% Tactical HUD 0 Map Filters NONE Filters NONE Steam X RUN: e8edef8e-5ab5-4636-ba9d-219e96dcc672